fUSD/lending_fUSD_20251212
["ID","MTS","AMOUNT","RATE_DAILY","PERIOD"]
[398314774,1765527049217,-645.100783,0.00034086,31]
[398314775,1765527049226,-645.100783,0.00034086,31]
[398314776,1765527049235,-645.100783,0.00034086,31]
[398314777,1765527049244,-645.100787,0.00034086,31]
[398314778,1765527049254,-2047.20452748,0.00034116,2]
[398314779,1765527049263,-152.0,0.00034162,4]
[398314780,1765527049273,-250.0,0.00034221,5]
[398314781,1765527049282,-199.0,0.0003424,120]
[398314782,1765527049291,-199.0,0.00034246,30]
[398314783,1765527049301,-1221.32,0.00034327,30]
[398314784,1765527049310,-166.66,0.00034452,30]
[398314785,1765527049319,-1069.934,0.00034458,39]
[398314786,1765527049329,-152.801,0.00034458,39]
[398314787,1765527049339,-890.665688,0.00034471,31]
[398314788,1765527049349,-890.665688,0.00034471,31]
[398314789,1765527049358,-890.665688,0.00034471,31]
[398314790,1765527049368,-890.66568093,0.00034471,31]
[398314791,1765527049377,-709.878663,0.00034471,31]
[398314792,1765527049387,-709.878663,0.00034471,31]
[398314793,1765527049396,-709.878663,0.00034471,31]
[398314794,1765527049406,-709.878659,0.00034471,31]
[398314795,1765527049416,-275.329117,0.00034471,31]
[398314796,1765527049426,-275.329117,0.00034471,31]
[398314797,1765527049436,-275.329117,0.00034471,31]
[398314798,1765527049446,-275.329108,0.00034471,31]
[398314799,1765527049456,-150.0,0.00034496,4]
[398314800,1765527049465,-150.0,0.00034496,4]
[398314801,1765527049474,-150.0,0.00034496,4]
[398314802,1765527049484,-150.0,0.00034496,4]
[398314803,1765527049493,-150.0,0.00034496,4]
[398314804,1765527049503,-150.0,0.00034496,4]
[398314805,1765527049512,-150.0,0.00034496,4]
[398314806,1765527049522,-150.0,0.00034496,4]
[398314807,1765527049531,-1074.02147922,0.00034517,2]
[398314808,1765527049541,-177.91505265,0.00034615,19]
[398314809,1765527049550,-4523.81540818,0.00034645,2]
[398314810,1765527049560,-350.0,0.00034768,5]
[398314811,1765527049569,-2047.20452748,0.00034786,2]
[398314812,1765527049579,-594.761425,0.00034849,31]
[398314813,1765527049589,-594.761425,0.00034849,31]
[398314814,1765527049599,-594.761425,0.00034849,31]
[398314815,1765527049608,-594.761422,0.00034849,31]
[398314816,1765527049618,-452.42,0.00034849,120]
[398314817,1765527049627,-1444.0,0.00034849,120]
[398314818,1765527049637,-452.42,0.00034877,120]
[398314819,1765527049647,-452.42,0.00034907,120]
[398314820,1765527049656,-199.0,0.00034931,31]
[398314821,1765527049666,-452.42,0.00034938,120]
[398314822,1765527049676,-2000.0,0.00034953,120]
[398314823,1765527049685,-452.42,0.00034971,120]
[398314824,1765527049694,-770.552054,0.00035001,31]
[398314825,1765527049704,-770.552054,0.00035001,31]
[398314826,1765527049713,-770.552054,0.00035001,31]
[398314827,1765527049723,-770.552054,0.00035001,31]
[398314828,1765527049732,-452.42,0.00035005,120]
[398314829,1765527049742,-1109.52,0.00035026,30]
[398314830,1765527049754,-500.0,0.00035026,30]
[398314831,1765527049764,-151.0,0.00035027,31]
[398314832,1765527049774,-151.0,0.00035027,31]
[398314833,1765527049783,-151.0,0.00035027,31]
[398314834,1765527049795,-286.711656,0.00035027,31]
[398314835,1765527049804,-770.552054,0.00035027,31]
[398314836,1765527049814,-770.552054,0.00035027,31]
[398314837,1765527049823,-770.552054,0.00035027,31]
[398314838,1765527049834,-770.552053,0.00035027,31]
[398314839,1765527049844,-170.62347588,0.00035027,2]
[398314840,1765527049853,-452.42,0.00035042,120]
[398314841,1765527049862,-151.25225534,0.00035076,2]
[398314842,1765527049872,-452.42,0.00035081,120]
[398314843,1765527049882,-452.42,0.00035122,120]
[398314844,1765527049891,-166.66,0.00035163,30]
[398314845,1765527049901,-452.42,0.00035167,120]
[398314846,1765527049911,-182.57,0.00035169,2]
[398314847,1765527049920,-152.0,0.00035171,5]
[398314848,1765527049931,-452.42,0.00035215,120]
[398314849,1765527049940,-150.0,0.00035262,7]
[398314850,1765527049949,-452.42,0.00035268,120]
[398314851,1765527049959,-450.0,0.00035316,5]
[398314852,1765527049968,-452.42,0.00035325,120]
[398314853,1765527049977,-452.42,0.00035389,120]
[398314854,1765527049987,-166.35,0.00035445,120]
[398314855,1765527049996,-150.0,0.00035454,7]
[398314856,1765527050005,-150.0,0.00035454,7]
[398314857,1765527050015,-2047.20452748,0.00035456,2]
[398314858,1765527050024,-452.42,0.0003546,120]
[398314859,1765527050033,-159.67108242,0.00035516,23]
[398314860,1765527050043,-452.42,0.00035541,120]
[398314861,1765527050052,-1543.24,0.00035611,2]
[398314862,1765527050061,-361.3933785,0.00035616,93]
[398314863,1765527050071,-199.0,0.00035616,32]
[398314864,1765527050080,-470.0,0.00035616,120]
[398314865,1765527050090,-452.42,0.00035634,120]
[398314866,1765527050099,-452.42,0.00035744,120]
[398314867,1765527050109,-470.0,0.00035753,120]
[398314868,1765527050119,-150.0,0.00035774,7]
[398314869,1765527050128,-1074.02147922,0.00035862,2]
[398314870,1765527050137,-550.0,0.00035864,5]
[398314871,1765527050147,-166.66,0.00035873,30]
[398314872,1765527050157,-452.42,0.00035879,120]
[398314873,1765527050166,-2000.0,0.00035885,120]
[398314874,1765527050176,-500.0,0.00035889,30]
[398314875,1765527050185,-500.0,0.00035889,30]
[398314876,1765527050194,-500.0,0.00035889,30]
[398314877,1765527050203,-500.0,0.00035889,30]
[398314878,1765527050212,-500.0,0.00035889,30]
[398314879,1765527050223,-506.77504211,0.00035889,30]
[398314880,1765527050234,-470.0,0.0003589,120]
[398314881,1765527050244,-199.0,0.00035952,120]
[398314882,1765527050257,-2035.0,0.00036,60]
[398314883,1765527050267,-1025.68,0.00036,30]
[398314884,1765527050276,-2072.54365153,0.00036,90]
[398314885,1765527050286,-470.0,0.00036027,120]
[398314886,1765527050295,-150.0,0.00036029,7]
[398314887,1765527050307,-198.0,0.00036042,120]
[398314888,1765527050316,-2047.20452748,0.00036125,2]
[398314889,1765527050325,-470.0,0.00036164,120]
[398314890,1765527050335,-152.0,0.00036181,6]
[398314891,1765527050344,-470.0,0.00036301,120]
[398314892,1765527050353,-177.91505265,0.00036408,22]
[398314893,1765527050363,-250.0,0.00036412,5]
[398314894,1765527050372,-150.0,0.00036412,7]
[398314895,1765527050381,-150.0,0.00036412,7]
[398314896,1765527050391,-150.0,0.00036412,7]
[398314897,1765527050400,-150.0,0.00036412,7]
[398314898,1765527050410,-300.0,0.0003642,2]
[398314899,1765527050419,-151.0,0.0003642,2]
[398314900,1765527050428,-156.587,0.0003642,2]
[398314901,1765527050438,-162.380719,0.0003642,2]
[398314902,1765527050447,-152.41433808,0.0003642,2]
[398314903,1765527050457,-470.0,0.00036438,120]
[398314904,1765527050467,-470.0,0.00036575,120]
[398314905,1765527050476,-166.66,0.00036583,30]
[398314906,1765527050485,-600.0,0.00036703,120]
[398314907,1765527050495,-470.0,0.00036712,120]
[398314908,1765527050504,-1025.68,0.0003672,30]
[398314909,1765527050514,-4523.81540818,0.00036724,2]
[398314910,1765527050523,-11400.0,0.0003676,2]
[398314911,1765527050533,-2047.20452748,0.00036795,2]
[398314912,1765527050543,-150.0,0.00036796,7]
[398314913,1765527050553,-517.23784014,0.00036803,30]
[398314914,1765527050562,-500.0,0.00036803,30]
[398314915,1765527050572,-500.0,0.00036803,30]
[398314916,1765527050581,-500.0,0.00036803,30]
[398314917,1765527050591,-500.0,0.00036803,30]
[398314918,1765527050601,-700.0,0.00036804,30]
[398314919,1765527050610,-500.0,0.00036804,30]
[398314920,1765527050619,-555.68795582,0.00036804,30]
[398314921,1765527050629,-2000.0,0.00036817,120]
[398314922,1765527050638,-178.92419861,0.00036822,2]
[398314923,1765527050648,-470.0,0.00036849,120]
[398314924,1765527050658,-500.0,0.0003696,120]
[398314925,1765527050668,-500.0,0.0003696,120]
[398314926,1765527050678,-500.0,0.0003696,120]
[398314927,1765527050687,-500.0,0.0003696,120]
[398314928,1765527050696,-470.0,0.00036986,120]
[398314929,1765527050705,-2500.0,0.00036986,120]
[398314930,1765527050715,-1819.26,0.00036986,2]
[398314931,1765527050724,-1216.59,0.00036986,2]
[398314932,1765527050733,-552.86,0.00036986,2]
[398314933,1765527050742,-1216.59,0.00036986,2]
[398314934,1765527050950,-1216.59,0.00036986,2]
[398314935,1765527050961,-1216.59,0.00036986,2]
[398314936,1765527050970,-1216.59,0.00036986,2]
[398314937,1765527050979,-1216.59,0.00036986,2]
[398314938,1765527050989,-150.0,0.00037051,7]
[398314939,1765527050998,-500.0,0.00037122,30]
[398314940,1765527051007,-470.0,0.00037123,120]
[398314941,1765527051016,-151.25225534,0.00037139,2]
[398314942,1765527051025,-871.44,0.00037167,30]
[398314943,1765527051034,-871.44,0.00037167,30]
[398314944,1765527051043,-871.44,0.00037167,30]
[398314945,1765527051052,-871.44,0.00037167,30]
[398314946,1765527051062,-152.0,0.0003719,7]
[398314947,1765527051071,-325.0,0.000372,7]
[398314948,1765527051080,-1199.64677221,0.00037203,2]
[398314949,1765527051090,-1074.02147922,0.00037208,2]
[398314950,1765527051099,-470.0,0.0003726,120]
[398314951,1765527051108,-2500.0,0.0003726,120]
[398314952,1765527051117,-166.66,0.00037294,30]
[398314953,1765527051126,-200.0,0.00037363,2]
[398314954,1765527051135,-150.0,0.00037371,7]
[398314955,1765527051144,-150.0,0.00037371,7]
[398314956,1765527051153,-470.0,0.00037397,120]
[398314957,1765527051162,-871.44,0.00037441,30]
[398314958,1765527051171,-871.44,0.00037441,30]
[398314959,1765527051180,-1000.0,0.00037442,7]
[398314960,1765527051189,-2047.20452748,0.00037465,2]
[398314961,1765527051198,-470.0,0.00037534,120]
[398314962,1765527051207,-2500.0,0.00037534,120]
[398314963,1765527051216,-150.0,0.00037562,7]
[398314964,1765527051225,-470.0,0.00037671,120]
[398314965,1765527051235,-871.44,0.00037715,30]
[398314966,1765527051244,-871.44,0.00037715,30]
[398314967,1765527051253,-199.0,0.00037749,120]
[398314968,1765527051263,-2000.0,0.00037749,120]
[398314969,1765527051273,-406.18369652,0.00037789,2]
[398314970,1765527051282,-1109.52,0.00037799,30]
[398314971,1765527051291,-500.0,0.00037799,120]
[398314972,1765527051300,-1500.0,0.000378,2]
[398314973,1765527051309,-1500.0,0.000378,2]
[398314974,1765527051319,-1500.0,0.000378,2]
[398314975,1765527051329,-1500.0,0.000378,2]
[398314976,1765527051338,-1500.0,0.000378,2]
[398314977,1765527051347,-1500.0,0.000378,2]
[398314978,1765527051357,-1500.0,0.000378,2]
[398314979,1765527051366,-1500.0,0.000378,2]
[398314980,1765527051375,-1500.0,0.000378,2]
[398314981,1765527051385,-1500.0,0.000378,2]
[398314982,1765527051394,-1500.0,0.000378,2]
[398314983,1765527051403,-1500.0,0.000378,2]
[398314984,1765527051412,-1500.0,0.000378,2]
[398314985,1765527051422,-1638.0,0.000378,7]
[398314986,1765527051431,-470.0,0.00037808,120]
[398314987,1765527051440,-500.0,0.00037808,120]
[398314988,1765527051450,-2500.0,0.00037808,120]
[398314989,1765527051460,-1216.59,0.00037808,2]
[398314990,1765527051470,-1216.59,0.00037808,2]
[398314991,1765527051479,-1216.59,0.00037808,2]
[398314992,1765527051489,-1216.59,0.00037808,2]
[398314993,1765527051498,-1502.18,0.00037808,2]
[398314994,1765527051509,-198.0,0.00037844,120]
[398314995,1765527051518,-154.3,0.000379,30]
[398314996,1765527051528,-470.0,0.00037945,120]
[398314997,1765527051538,-871.44,0.00037989,30]
[398314998,1765527051547,-871.44,0.00037989,30]
[398314999,1765527051556,-1440.39563472,0.00038,120]
[398315000,1765527051566,-2000.0,0.00038,120]
[398315001,1765527051576,-2000.0,0.00038,30]
[398315002,1765527051586,-500.0,0.00038,30]
[398315003,1765527051595,-1000.0,0.00038,120]
[398315004,1765527051605,-1000.0,0.00038,120]
[398315005,1765527051615,-470.0,0.00038082,120]
[398315006,1765527051626,-2500.0,0.00038082,120]
[398315007,1765527051635,-2047.20452748,0.00038134,2]
[398315008,1765527051646,-152.0,0.000382,8]
[398315009,1765527051657,-1000.0,0.000382,7]
[398315010,1765527051668,-177.91505265,0.00038202,24]
[398315011,1765527051678,-470.0,0.00038219,120]
[398315012,1765527051688,-159.67108242,0.00038225,27]
[398315013,1765527051698,-169.84240216,0.00038254,2]
[398315014,1765527051709,-871.44,0.00038263,30]
[398315015,1765527051720,-871.44,0.00038263,30]
[398315016,1765527051731,-1000.0,0.0003827,2]
[398315017,1765527051741,-200.0,0.00038299,6]
[398315018,1765527051754,-207.4,0.00038299,6]
[398315019,1765527051771,-215.0738,0.00038299,6]
[398315020,1765527051781,-223.0315306,0.00038299,6]
[398315021,1765527051791,-231.28369723,0.00038299,6]
[398315022,1765527051802,-239.84119403,0.00038299,6]
[398315023,1765527051814,-248.71531821,0.00038299,6]
[398315024,1765527051825,-257.91778498,0.00038299,6]
[398315025,1765527051836,-150.0,0.000383,18]
[398315026,1765527051847,-2155.47,0.000383,30]
[398315027,1765527051858,-747.17,0.000383,30]
[398315028,1765527051868,-272.57,0.000383,14]
[398315029,1765527051879,-3289.46,0.000383,14]
[398315030,1765527051889,-2000.0,0.000383,120]
[398315031,1765527051899,-613.139,0.000383,120]
[398315032,1765527051908,-502.76831288,0.00038317,120]
[398315033,1765527051918,-1253.0,0.00038325,7]
[398315034,1765527051927,-1253.0,0.00038325,7]
[398315035,1765527051936,-1253.0,0.00038325,7]
[398315036,1765527051946,-1253.0,0.00038325,7]
[398315037,1765527051955,-1253.0,0.00038325,7]
[398315038,1765527051964,-1253.0,0.00038325,7]
[398315039,1765527051973,-1253.0,0.00038325,7]
[398315040,1765527051982,-1253.0,0.00038325,7]
[398315041,1765527051991,-1253.0,0.00038325,7]
[398315042,1765527052000,-1253.0,0.00038325,7]
[398315043,1765527052010,-1253.0,0.00038325,7]
[398315044,1765527052019,-1253.0,0.00038325,7]
[398315045,1765527052028,-1253.0,0.00038325,7]
[398315046,1765527052037,-1253.0,0.00038325,7]
[398315047,1765527052047,-1253.0,0.00038325,7]
[398315048,1765527052058,-1253.0,0.00038325,7]
[398315049,1765527052067,-1253.0,0.00038325,7]
[398315050,1765527052077,-1253.0,0.00038325,7]
[398315051,1765527052086,-1253.0,0.00038325,7]
[398315052,1765527052096,-1253.0,0.00038325,7]
[398315053,1765527052106,-1253.0,0.00038325,7]
[398315054,1765527052114,-1253.0,0.00038325,7]
[398315055,1765527052124,-1253.0,0.00038325,7]
[398315056,1765527052133,-1253.0,0.00038325,7]
[398315057,1765527052142,-1253.0,0.00038325,7]
[398315058,1765527052151,-1253.0,0.00038325,7]
[398315059,1765527052161,-1253.0,0.00038325,7]
[398315060,1765527052170,-157.98201989,0.00038329,7]
[398315061,1765527052180,-150.0,0.00038329,7]
[398315062,1765527052190,-150.0,0.00038329,7]
[398315063,1765527052203,-160.81998574,0.00038329,7]
[398315064,1765527052212,-155.6459337,0.00038329,7]
[398315065,1765527052236,-168.7774078,0.00038329,7]
[398315066,1765527052252,-150.0,0.00038329,7]
[398315067,1765527052274,-186.76194697,0.00038344,2]
[398315068,1765527052290,-626.52495238,0.00038353,30]
[398315069,1765527052321,-482.99504762,0.00038353,30]
[398315070,1765527052348,-500.0,0.00038353,120]
[398315071,1765527052367,-182.71705098,0.00038353,120]
[398315072,1765527052391,-317.28294902,0.00038353,120]
[398315073,1765527052411,-216.04173051,0.00038353,30]
[398315074,1765527172388,215.13,0.00013699,2]
[398315083,1765528206339,-2000.0,0.00016,4]
[398315084,1765528223888,-10000.0,0.00016,4]
[398315085,1765528224583,-10000.0,0.00016,4]
[398315086,1765528225353,-10000.0,0.00016,4]
[398315087,1765528226053,-10000.0,0.00016,4]
[398315088,1765528226763,-10000.0,0.00016,4]
[398315089,1765528227428,-10000.0,0.00016,4]
[398315090,1765528229263,-5853.45689304,0.00016,4]
[398315097,1765528231912,-200.96984431,0.00016099,2]
[398315098,1765528231932,-621.61490612,0.00016199,2]
[398315099,1765528231953,-500.0,0.00016199,2]
[398315100,1765528231975,-500.0,0.00016199,2]
[398315101,1765528231996,-295.78475781,0.00016199,2]
[398315102,1765528232015,-132.49796466,0.00016199,2]
[398315106,1765528237814,-367.50203534,0.00016199,2]
[398315107,1765528237833,-500.0,0.00016199,2]
[398315108,1765528237852,-500.0,0.00016199,2]
[398315109,1765528237870,-186.18796466,0.00016199,2]
[398315110,1765528237890,-313.81203534,0.00016199,2]
[398315111,1765528237906,-486.18796466,0.00016199,2]
[398315112,1765528237931,-13.81203534,0.00016199,2]
[398315113,1765528237946,-500.0,0.00016199,2]
[398315114,1765528237963,-264.66578633,0.00016199,2]
[398315115,1765528238008,-235.33421367,0.00016199,2]
[398315116,1765528238025,-393.37909555,0.00016199,2]
[398315117,1765528238039,-500.0,0.00016199,2]
[398315118,1765528238055,-500.0,0.00016199,2]
[398315119,1765528238071,-500.0,0.00016199,2]
[398315120,1765528238089,-295.52843687,0.00016199,2]
[398315121,1765528238112,-204.47156313,0.00016199,2]
[398315122,1765528238130,-96.12843687,0.00016199,2]
[398315123,1765528238149,-403.87156313,0.00016199,2]
[398315124,1765528238164,-500.0,0.00016199,2]
[398315125,1765528238181,-500.0,0.00016199,2]
[398315126,1765528238198,-500.0,0.00016199,2]
[398315127,1765528238215,-500.0,0.00016199,2]
[398315128,1765528238232,-500.0,0.00016199,2]
[398315129,1765528238249,-500.0,0.00016199,2]
[398315130,1765528238265,-500.0,0.00016199,2]
[398315131,1765528238281,-421.09838726,0.00016199,2]
[398315132,1765528238299,-500.0,0.00016199,2]
[398315133,1765528238315,-500.0,0.00016199,2]
[398315134,1765528238331,-500.0,0.00016199,2]
[398315135,1765528238347,-500.0,0.00016199,2]
[398315136,1765528238364,-500.0,0.00016199,2]
[398315137,1765528238380,-500.0,0.00016199,2]
[398315138,1765528238396,-500.0,0.00016199,2]
[398315139,1765528238411,-500.0,0.00016199,2]
[398315140,1765528238426,-500.0,0.00016199,2]
[398315141,1765528238441,-450.0,0.00016199,2]
[398315142,1765528238457,-286.0,0.00016199,2]
[398315143,1765528238473,-57682.95017283,0.000162,5]
[398315188,1765528240742,-3325.14821245,0.000162,5]
[398315189,1765528240755,-14017.1066969,0.000162,5]
[398315190,1765528240767,-2900.18651994,0.000162,5]
[398315191,1765528240779,-1854.36,0.000162,5]
[398315192,1765528240791,-15981.12022198,0.000162,5]
[398315193,1765528240803,-963.77937838,0.000162,5]
[398315194,1765528240819,-52868.99879752,0.000162,5]
[398315195,1765528240830,-200.2070222,0.000176,2]
[398315196,1765528240840,-250.0,0.000176,2]
[398315197,1765528240850,-250.0,0.0001782,2]
[398315198,1765528240860,-2000.0,0.00018,2]
[398315199,1765528240870,-2000.0,0.00018,2]
[398315200,1765528240879,-2000.0,0.00018,2]
[398315201,1765528240890,-2000.0,0.00018,2]
[398315202,1765528240900,-2000.0,0.00018,2]
[398315203,1765528240911,-2000.0,0.00018,2]
[398315204,1765528240921,-2000.0,0.00018,2]
[398315205,1765528240931,-2000.0,0.00018,2]
[398315206,1765528240941,-2000.0,0.00018,2]
[398315207,1765528240951,-2000.0,0.00018,2]
[398315208,1765528240961,-2000.0,0.00018,2]
[398315209,1765528240972,-2000.0,0.00018,2]
[398315210,1765528240983,-2000.0,0.00018,2]
[398315211,1765528240993,-2000.0,0.00018,2]
[398315212,1765528241003,-2000.0,0.00018,2]
[398315213,1765528241013,-2000.0,0.00018,2]
[398315214,1765528241027,-2000.0,0.00018,2]
[398315215,1765528241038,-2000.0,0.00018,2]
[398315216,1765528241047,-2000.0,0.00018,2]
[398315217,1765528241057,-2000.0,0.00018,2]
[398315218,1765528241066,-2000.0,0.00018,2]
[398315219,1765528241077,-215.13,0.00020187,2]
[398315220,1765528241087,-250.0,0.00021141,2]
[398315221,1765528241097,-219.46687473,0.00021203,2]
[398315222,1765528241106,-196.13256283,0.00021203,2]
[398315223,1765528241117,-501.65512545,0.00021203,2]
[398315224,1765528241127,-1710.95982013,0.00023394,2]
[398315225,1765528241136,-178.0,0.00023565,2]
[398315226,1765528241146,-166.0,0.00023608,2]
[398315227,1765528241157,-500.0,0.00024658,2]
[398315228,1765528241167,-500.0,0.00024658,2]
[398315229,1765528241177,-500.0,0.00024658,2]
[398315230,1765528241187,-167.33824063,0.00024658,2]
[398315231,1765528241196,-500.0,0.000247,2]
[398315232,1765528241214,-645.97456182,0.000247,2]
[398315233,1765528241224,-500.0,0.000247,2]
[398315234,1765528241234,-163.66,0.000258,14]
[398315235,1765528241247,-215.13,0.00026676,2]
[398315236,1765528241259,-253.0,0.00026861,2]
[398315237,1765528241269,-192.25,0.00028752,14]
[398315238,1765528241279,-500.0,0.00028754,30]
[398315239,1765528241288,-500.0,0.00028754,30]
[398315240,1765528241298,-500.0,0.00028754,30]
[398315241,1765528241307,-500.0,0.00028754,30]
[398315242,1765528241318,-151.25225534,0.00028787,2]
[398315243,1765528241330,-192.25,0.00029026,14]
[398315244,1765528241341,-192.26,0.000293,14]
[398315245,1765528241351,-253.0,0.00029861,2]
[398315246,1765528241360,-157.90254619,0.00031197,7]
[398315247,1765528241370,-500.0,0.000312,5]
[398315248,1765528241380,-500.0,0.000312,5]
[398315249,1765528241390,-500.0,0.000312,5]
[398315250,1765528241400,-500.0,0.000312,5]
[398315251,1765528241409,-500.0,0.000312,5]
[398315252,1765528241419,-500.0,0.000312,5]
[398315253,1765528241429,-500.0,0.000312,5]
[398315254,1765528241439,-150.0,0.000312,5]
[398315255,1765528241449,-569.17242222,0.000312,5]
[398315256,1765528241460,-505.21528967,0.000312,5]
[398315257,1765528241470,-500.0,0.000312,5]
[398315258,1765528241480,-500.0,0.000312,5]
[398315259,1765528241489,-531.33878976,0.00031746,2]
[398315260,1765528241500,-1000.0,0.00031748,5]
[398315261,1765528241510,-1000.0,0.00031748,5]
[398315262,1765528241520,-711.42379993,0.00031748,5]
[398315263,1765528241530,-1000.0,0.00031748,5]
[398315264,1765528241540,-366.67059237,0.00031748,5]
[398315265,1765528241550,-505.30226344,0.00031748,5]
[398315266,1765528241560,-1000.0,0.00031748,5]
[398315267,1765528241569,-162.96288019,0.00031748,5]
[398315268,1765528241579,-1005.15949954,0.00031748,5]
[398315269,1765528241589,-504.05376644,0.00031748,5]
[398315270,1765528241598,-268.50536984,0.00032196,2]
[398315271,1765528241612,-1500.0,0.00032296,5]
[398315272,1765528241623,-288.01690031,0.00032296,5]
[398315273,1765528241633,-1500.0,0.00032296,5]
[398315274,1765528241642,-1500.0,0.00032296,5]
[398315275,1765528241652,-512.547964,0.00032844,5]
[398315276,1765528241662,-518.59023021,0.00032844,5]
[398315277,1765528241672,-511.34056701,0.00032844,5]
[398315278,1765528241682,-500.0,0.00032876,30]
[398315279,1765528241692,-1000.0,0.00032877,10]
[398315280,1765528241702,-1000.0,0.00032877,10]
[398315281,1765528241712,-205.48265743,0.00032877,2]
[398315282,1765528241722,-215.13,0.00033165,2]
[398315283,1765528241733,-268.5053698,0.00033257,2]
[398315284,1765528241743,-166.35,0.00033489,120]
[398315285,1765528241753,-152.0,0.0003354,3]
[398315286,1765528241763,-150.0,0.00033673,5]
[398315287,1765528241773,-500.0,0.00034085,30]
[398315288,1765528241782,-250.0,0.00034221,5]
[398315289,1765528241792,-268.5053698,0.00034319,2]
[398315290,1765528241803,-1170.44,0.0003436,30]
[398315291,1765528241812,-914.55,0.00034424,120]
[398315292,1765528241822,-200.0,0.00034447,2]
[398315293,1765528241833,-951.613,0.00034463,39]
[398315294,1765528241843,-150.0,0.00034496,4]
[398315295,1765528241852,-181.0,0.00034575,7]
[398315296,1765528241861,-500.0,0.00034848,120]
[398315297,1765528241872,-500.0,0.00034848,120]
[398315298,1765528241881,-500.0,0.00034848,120]
[398315299,1765528241891,-1259.23621656,0.00034849,120]
[398315300,1765528241901,-181.0,0.00034859,2]
[398315301,1765528241910,-152.0,0.00034938,4]
[398315302,1765528241920,-168.0,0.00034976,2]
[398315303,1765528241929,-183.0,0.00034978,7]
[398315304,1765528241938,-200.0,0.00034986,2]
[398315305,1765528241948,-183.0,0.000351,120]
[398315306,1765528241958,-500.0,0.0003526,2]
[398315307,1765528241967,-168.0,0.00035375,2]
[398315308,1765528241977,-268.5053698,0.0003538,2]
[398315309,1765528241990,-181.0,0.00035416,2]
[398315310,1765528242000,-168.0,0.00035474,2]
[398315311,1765528242009,-168.0,0.0003562,2]
[398315312,1765528242019,-181.0,0.00035694,2]
[398315313,1765528242028,-168.0,0.00035745,2]
[398315314,1765528242038,-500.0,0.00035889,30]
[398315315,1765528242047,-500.0,0.00035889,30]
[398315316,1765528242057,-500.0,0.00035889,30]
[398315317,1765528242066,-151.25225534,0.00035984,2]
[398315318,1765528242076,-168.0,0.00036005,2]
[398315319,1765528242086,-168.0,0.00036094,7]
[398315320,1765528242096,-168.0,0.00036176,2]
[398315321,1765528242105,-152.0,0.00036336,5]
[398315322,1765528242115,-268.5053698,0.00036442,2]
[398315323,1765528242124,-185.0,0.00036474,2]
[398315324,1765528242134,-183.0,0.00036525,2]
[398315325,1765528242144,-278.99,0.00036605,2]
[398315326,1765528242528,-2000.0,0.00036692,120]
[398315327,1765528242537,-500.0,0.00036803,30]
[398315328,1765528242547,-537.15,0.00036803,120]
[398315329,1765528242556,-549.65,0.00036803,30]
[398315330,1765528242565,-550.95661819,0.00036803,30]
[398315331,1765528242575,-500.0,0.00036804,30]
[398315332,1765528242585,-1000.0,0.00036809,7]
[398315333,1765528242594,-230.1424046,0.00036822,2]
[398315334,1765528242603,-500.0,0.0003696,120]